Workbook

Sheet Introduction
B3: KSU-Dairy Farm Management Guide Budgets
B5: Excel spreadsheets for dairy enterprise budgeting to evaluate potential income, costs and profitability
L8: Version- 12.2.2019
B28: INTRODUCTION
B29: The Kansas State University cost-return budgets were developed to serve as a barometer of profitability for various livestock industry enterprises. These budgets are NOT intended to represent any one operation. Each individual operation should adjust key inputs to reflect their own situation.
B31: INSTRUCTIONS FOR THE USER:
B32: Be sure to "Enable Content" and "Enable Macros" for the spreadsheet to function correctly. Blue values are inputs that should be changed from the defaults to match your operation. Black values are automatically calculated.
B37: FOR MORE INFORMATION:
B38: Developed by:
B40: Robin Reid | H40: Glynn T. Tonsor, Ph.D.
B41: Extension Associate | H41: Agricultural Economist
B42: Department of Agricultural Economics | H42: Department of Agricultural Economics
B43: Kansas State University | H43: Kansas State University
B44: robinreid@ksu.edu | H44: gtonsor@k-state.edu
B45: 785-532-0964 | H45: 785-532-1518
B47: Copyright 2019 AgManager.info, K-State Department of Agricultural Economics

Sheet Prices
A1: Current Prices
A2: One Year Out Prices
A3: Five Years Out Prices
B4: =A1 -> Current Prices | D4: =A2 -> One Year Out Prices | G4: =A3 -> Five Years Out Prices
B5: (as of Dec. 2nd, 2019) | C5: 0 | D5: (as of Dec. 2nd, 2019) | E5: 0 | F5: 0 | G5: (Oct. 2019 USDA)
A6: Corn ($/bu) | B6: 3.7 | C6: 0 | D6: 3.9 | E6: 0 | F6: 0 | G6: 3.45
A7: Soybeans ($/bu) | B7: 8.47 | C7: 0 | D7: 9.05 | E7: 0 | F7: 0 | G7: 8.6
A8: Dairy Alfalfa ($/ton) | B8: 210 | C8: 0 | D8: 221.3513514 | E8: 0 | F8: 0 | G8: 195.8108108
A9: 16% 100 pounds of feed ($) | B9: =(51/56*B6)+(8/60*B7)+(41/2000*B8) -> 8.80397619 | D9: =(51/56*D6)+(8/60*D7)+(41/2000*D8) -> 9.296155084 | G9: =(51/56*G6)+(8/60*G7)+(41/2000*G8) -> 8.302752574
A10: Milk:Feed Ratio | B10: =B13/B9 -> 2.044530745 | D10: =D13/D9 -> 1.721141682 | G10: =G13/G9 -> 2.186022026
A11: Heifer Total Feed Cost ($) | B11: =ROUND(-280.44+(231.46*B9)+(-10.42*B9^2)+(-22.28*B13)+(0.72*B13^2)+69.94,0) -> 852 | C11: =ROUND(-280.44+(231.46*C9)+(-10.42*C9^2)+(-22.28*C13)+(0.72*C13^2)+136,0) -> -144 | D11: =ROUND(-280.44+(231.46*D9)+(-10.42*D9^2)+(-22.28*D13)+(0.72*D13^2)+69.94,0) -> 869 | E11: -144 | F11: -144 | G11: =ROUND(-280.44+(231.46*G9)+(-10.42*G9^2)+(-22.28*G13)+(0.72*G13^2)+69.94,0) -> 826
A13: Milk ($/cwt) | B13: 18 | C13: 0 | D13: 16 | E13: 0 | F13: 0 | G13: 18.15
A14: Replacement Heifers (per hd) | B14: 1300 | C14: 0 | D14: 1257 | E14: 0 | F14: 0 | G14: 1278
A15: Dairy Bull Calves (per hd) | B15: 75 | C15: 0 | D15: 73 | E15: 0 | F15: 0 | G15: 74
A16: Dairy Heifer Calves (per hd) | B16: 75 | C16: 0 | D16: 73 | E16: 0 | F16: 0 | G16: 74
A17: Dairy Cull cow (per cwt) | B17: 38 | C17: 0 | D17: 37 | E17: 0 | F17: 0 | G17: 38
A18: Cull Replacement Heifer (per cwt) | B18: 107.88 | C18: 0 | D18: 106 | E18: 0 | F18: 0 | G18: 106
A19: Cull Yearling Heifer (per cwt) | B19: 115 | C19: 0 | D19: 111 | E19: 0 | F19: 0 | G19: 113

Sheet Cow Milking-Purchased Replmts
A1: KSU Dairy Cow Budget-Purchased Replacements | D1: Current Prices | I1: =IF(D1=Prices!A1,Prices!B5,IF(D1=Prices!A2,Prices!D5,Prices!G5)) -> (as of Dec. 2nd, 2019) | L1: INTERNAL NOTES: | M1: Click on "Current Prices" to change to "One Year Out Prices " or "Five Years Out Prices"
A3: Production Efficiency Information
A4: Milk Produced Per Cow (lbs) | B4: 23500
A5: Replacement Heifer Purchases | B5: 0.37 | C5: Cull Cows Sales | E5: 0.3 | G5: Calves Sold | J5: 0.92
A7: Returns | B7: Price | C7: Unit | E7: Qty | F7: Unit | J7: Total per Cow/Year | K7: Total per CWT Milk/Year
A8: Milk Sales | B8: =IF(D1=Prices!A1,Prices!B13,IF(D1=Prices!A2,Prices!D13,IF(D1=Prices!A3,Prices!G13,""))) -> 18 | C8: per cwt | D8: x | E8: =B4 -> 23500 | F8: lbs | I8: = | J8: =B8*(E8/100) -> 4230 | K8: =B8 -> 18
A9: Milk Premiums | B9: 0 | C9: per cwt | D9: x | E9: =B4 -> 23500 | F9: lbs | I9: = | J9: =B9*E9 -> 0 | K9: =B9 -> 0
A10: Calves Sold | B10: =0.5*(IF(D1=Prices!A1,Prices!B15,IF(D1=Prices!A2,Prices!D15,IF(D1=Prices!A3,Prices!G15,""))))+0.5*(IF(D1=Prices!A1,Prices!B16,IF(D1=Prices!A2,Prices!D16,IF(D1=Prices!A3,Prices!G16,"")))) -> 75 | C10: per head | D10: x | E10: =J5 -> 0.92 | F10: hd | I10: = | J10: =B10*E10 -> 69 | K10: =J10/B4*100 -> 0.2936170213
A11: Cull Cows Sold | B11: =IF(D1=Prices!A1,Prices!B17,IF(D1=Prices!A2,Prices!D17,IF(D1=Prices!A3,Prices!G17,""))) -> 38 | C11: per cwt | D11: x | E11: 1350 | F11: lbs | G11: x | H11: =E5 -> 0.3 | I11: = | J11: =B11*(E11/100)*H11 -> 153.9 | K11: =J11/B4*100 -> 0.654893617
A12: Manure Credit | J12: 120 | K12: =J12/B4*100 -> 0.5106382979
A13: Other Income | J13: 80 | K13: =J13/B4*100 -> 0.3404255319
A14: Total Gross Return | J14: =SUM(J8:J13) -> 4652.9 | K14: =SUM(K8:K13) -> 19.79957447
A16: Variable Costs
A17: Feed Cost | B17: =IF(D1="Current Prices", (26.56+(0.1645*Prices!B9)+(0.01277*Prices!B9^2)+(-0.00273*B4)+(0.0000000746*B4^2)),IF(D1="One Year Out Prices", (26.56+(0.1645*Prices!D9)+(0.01277*Prices!D9^2)+(-0.00273*B4)+(0.0000000746*B4^2)), IF(D1="Five Years Out Prices", (26.56+(0.1645*Prices!G9)+(0.01277*Prices!G9^2)+(-0.00273*B4)+(0.0000000746*B4^2)),""))) -> 6.040906742 | C17: per head/day | D17: x | E17: 365 | F17: days | J17: =B17*E17 -> 2204.930961 | K17: =J17/$B$4*100 -> 9.38268494 | L17: Regression of FINBIN Feed Cost per head per day and Milk Produced per Cow to explain daily feed cost
A18: Replacement Heifers | B18: =IF(D1=Prices!A1,Prices!B14,IF(D1=Prices!A2,Prices!D14,IF(D1=Prices!A3,Prices!G14,""))) -> 1300 | C18: per head | D18: x | E18: =B5 -> 0.37 | F18: hd | I18: = | J18: =B18*E18 -> 481 | K18: =J18/$B$4*100 -> 2.046808511
A19: Cow Breeding Fees | J19: 44.5 | K19: 0.1893617021 | L19: Regression from FINBIN
A20: Daily Labor | B20: 15 | C20: per hour | D20: x | E20: 35 | F20: hours | I20: = | J20: =B20*E20 -> 525 | K20: =J20/$B$4*100 -> 2.234042553 | L20: Matched to Regression from total labor costs from FINBIN
A21: Management Labor | B21: 25 | C21: per hour | D21: x | E21: 8 | F21: hours | I21: = | J21: =B21*E21 -> 200 | K21: =J21/$B$4*100 -> 0.8510638298 | L21: Average of Labor and Management Charge
A22: Milk Marketing & Hauling | J22: 105 | K22: 0.4468085106 | L22: Average of Regression from both cow worksheets
A23: Veterinary | J23: 130 | K23: 0.5531914894 | L23: Regression from FINBIN
A24: Fuel & Oil | J24: 70 | K24: 0.2978723404 | L24: Regression from FINBIN
A25: Utilities | J25: 65 | K25: 0.2765957447 | L25: FINBIN average (regression had low R2)
A26: Machinery, Facility/Equip. Repairs | J26: 137 | K26: 0.5829787234 | L26: Regression from FINBIN
A27: Bedding | J27: 85 | K27: 0.3617021277 | L27: Regression from FINBIN
A28: Custom Hire | J28: 75 | K28: 0.3191489362 | L28: Regression from FINBIN, includes hoof trimming, hauling manure, etc.
A29: Cash Interest Paid | J29: 95 | K29: =J29/$B$4*100 -> 0.4042553191 | L29: Average from FINBIN (low R2)
A30: Other variable costs | J30: 280 | K30: 1.191489362 | L30: Regression from FINBIN, "Supplies" + $30 for BST costs
A31: Total Variable Costs | J31: =SUM(J17:J30) -> 4497.430961 | K31: =SUM(K17:K30) -> 19.13800409
A33: Fixed Costs
A34: Depreciation | J34: 185 | K34: =J34/$B$4*100 -> 0.7872340426 | L34: Regression from FINBIN, Buildings and Equipment
A35: Farm/Livestock Insurance | J35: 54 | K35: =J35/$B$4*100 -> 0.229787234 | L35: Regression from FINBIN
A36: Opportunity Cost of Investment | J36: 260 | K36: 1.106382979 | L36: Calculated as 5.5% of total costs ($4,753.09)
A37: Other fixed costs | J37: 115 | K37: 0.4893617021 | L37: Machinery and Building Leases
A38: Total Fixed Costs | J38: =SUM(J34:J37) -> 614 | K38: =SUM(K34:K37) -> 2.612765957
A40: Total Costs | J40: =J31+J38 -> 5111.430961 | K40: =K31+K38 -> 21.75077005 | L40: Jan. 2015 ERS has $22.87 for total costs
A42: Income Over Variable Costs | J42: =J14-J31 -> 155.4690392 | K42: =K14-K31 -> 0.6615703795
A43: Income Over Total Costs | J43: =J14-J40 -> -458.5309608 | K43: =K14-K40 -> -1.951195578
A46: Kansas State University, Department of Agricultural Economics - www.agmanager.info
A47: Publication: AM-FMG-Dairy Cows-Purchased | J47: =Introduction!L8 -> Version- 12.2.2019
A49: KSU Dairy Cow Budget-Purchased Replacements
A93: Kansas State University, Department of Agricultural Economics - www.agmanager.info
A94: Publication: AM-FMG-Dairy Cows-Purchased | J94: =J47 -> Version- 12.2.2019
A96: KSU Dairy Cow Budget-Purchased Replacements
A97: Budget Assumptions
A100: Default Dairy Prices
B101: Current | C101: One Year Out | E101: Five Years Out
A102: =Prices!A6 -> Corn ($/bu) | B102: =Prices!B6 -> 3.7 | C102: =Prices!D6 -> 3.9 | E102: =Prices!G6 -> 3.45
A103: =Prices!A7 -> Soybeans ($/bu) | B103: =Prices!B7 -> 8.47 | C103: =Prices!D7 -> 9.05 | E103: =Prices!G7 -> 8.6
A104: =Prices!A8 -> Dairy Alfalfa ($/ton) | B104: =Prices!B8 -> 210 | C104: =Prices!D8 -> 221.3513514 | E104: =Prices!G8 -> 195.8108108
A105: =Prices!A9 -> 16% 100 pounds of feed ($) | B105: =Prices!B9 -> 8.80397619 | C105: =Prices!D9 -> 9.296155084 | E105: =Prices!G9 -> 8.302752574
A106: =Prices!A10 -> Milk:Feed Ratio | B106: =Prices!B10 -> 2.044530745 | C106: =Prices!D10 -> 1.721141682 | E106: =Prices!G10 -> 2.186022026
A108: =Prices!A13 -> Milk ($/cwt) | B108: =Prices!B13 -> 18 | C108: =Prices!D13 -> 16 | E108: =Prices!G13 -> 18.15
A109: =Prices!A14 -> Replacement Heifers (per hd) | B109: =Prices!B14 -> 1300 | C109: =Prices!D14 -> 1257 | E109: =Prices!G14 -> 1278
A110: =Prices!A15 -> Dairy Bull Calves (per hd) | B110: =Prices!B15 -> 75 | C110: =Prices!D15 -> 73 | E110: =Prices!G15 -> 74
A111: =Prices!A16 -> Dairy Heifer Calves (per hd) | B111: =Prices!B16 -> 75 | C111: =Prices!D16 -> 73 | E111: =Prices!G16 -> 74
A112: =Prices!A17 -> Dairy Cull cow (per cwt) | B112: =Prices!B17 -> 38 | C112: =Prices!D17 -> 37 | E112: =Prices!G17 -> 38
A128: Kansas State University, Department of Agricultural Economics - www.agmanager.info
A129: Publication: AM-FMG-Dairy Cow-Purchased | J129: =J94 -> Version- 12.2.2019

Sheet Cow Milking-Raised Replmts
A1: KSU Dairy Cow Budget- Raised Replacements | D1: Current Prices | I1: =IF(D1=Prices!A1,Prices!B5,IF(D1=Prices!A2,Prices!D5,Prices!G5)) -> (as of Dec. 2nd, 2019) | M1: Click on "Current Prices" to change to "One Year Out Prices " or "Five Years Out Prices"
A3: Production Efficiency Information | L3: INTERNAL NOTES:
A4: Milk Produced Per Cow (lbs) | B4: 23500 | C4: Cull Cows Sales | E4: 0.3 | G4: Calves Sold at Birth | K4: 0.46
A5: Cull Replacements Sold | B5: 0.05 | C5: Cull Yearlings Sold | E5: 0.02 | G5: Repl. Heifer Death Loss | K5: 0.07
A6: Replacement Heifer Turnover | B6: =0.5-B5-E5-K5 -> 0.36
A8: Returns | B8: Price | C8: Unit | E8: Qty | F8: Unit | J8: Total per Cow/Year | K8: Total per CWT Milk/Year
A9: Milk Sales | B9: =IF(D1=Prices!A1,Prices!B13,IF(D1=Prices!A2,Prices!D13,IF(D1=Prices!A3,Prices!G13,""))) -> 18 | C9: per cwt | D9: x | E9: =B4 -> 23500 | F9: lbs | I9: = | J9: =B9*(E9/100) -> 4230 | K9: =B9 -> 18
A10: Milk Premiums | B10: 0 | C10: per cwt | D10: x | E10: =B4 -> 23500 | F10: lbs | I10: = | J10: =B10*E10 -> 0 | K10: =B10 -> 0
A11: Calves Sold | B11: =IF(D1=Prices!A1,Prices!B15,IF(D1=Prices!A2,Prices!D15,IF(D1=Prices!A3,Prices!G15,""))) -> 75 | C11: per head | D11: x | E11: =K4 -> 0.46 | F11: hd | I11: = | J11: =B11*E11 -> 34.5 | K11: =J11/B4*100 -> 0.1468085106
A12: Cull Cows Sold | B12: =IF(D1=Prices!A1,Prices!B17,IF(D1=Prices!A2,Prices!D17,IF(D1=Prices!A3,Prices!G17,""))) -> 38 | C12: per cwt | D12: x | E12: 1350 | F12: lbs | G12: x | H12: =E4 -> 0.3 | I12: = | J12: =B12*(E12/100)*H12 -> 153.9 | K12: =J12/$B$4*100 -> 0.654893617
A13: Cull Replacements Sold | B13: =IF(D1=Prices!A1,Prices!B18,IF(D1=Prices!A2,Prices!D18,IF(D1=Prices!A3,Prices!G18,""))) -> 107.88 | C13: per cwt | D13: x | E13: 1250 | F13: lbs | G13: x | H13: =B5 -> 0.05 | I13: = | J13: =(B13*(E13/100))*H13 -> 67.425 | K13: =J13/$B$4*100 -> 0.2869148936
A14: Cull Yearlings Sold | B14: =IF(D1=Prices!A1,Prices!B19,IF(D1=Prices!A2,Prices!D19,IF(D1=Prices!A3,Prices!G19,""))) -> 115 | C14: per cwt | D14: x | E14: 725 | F14: lbs | G14: x | H14: =E5 -> 0.02 | I14: = | J14: =B14*(E14/100)*H14 -> 16.675 | K14: 0.07095744681
A15: Manure Credit | J15: =120+(35*B6) -> 132.6 | K15: =J15/B4*100 -> 0.5642553191
A16: Other Income | J16: 86 | K16: =J16/B4*100 -> 0.3659574468
A17: Total Gross Return | J17: =SUM(J9:J16) -> 4721.1 | K17: =SUM(K9:K16) -> 20.08978723
A19: Variable Costs
A20: Heifer Feed Cost | B20: =IF(D1="Current Prices", Prices!B11,IF(D1="One Year Out Prices", Prices!D11, IF(D1="Five Years Out Prices", Prices!G11,""))) -> 852 | C20: total cost | G20: x | H20: =B6+(0.5*(B5+E5+K5)) -> 0.43 | J20: =B20*H20 -> 366.36 | K20: =J20/$B$4*100 -> 1.558978723
A21: Cow Feed Cost | B21: =IF(D1="Current Prices", (26.56+(0.1645*Prices!B9)+(0.01277*Prices!B9^2)+(-0.00273*B4)+(0.0000000746*B4^2)),IF(D1="One Year Out Prices", (26.56+(0.1645*Prices!D9)+(0.01277*Prices!D9^2)+(-0.00273*B4)+(0.0000000746*B4^2)), IF(D1="Five Years Out Prices", (26.56+(0.1645*Prices!G9)+(0.01277*Prices!G9^2)+(-0.00273*B4)+(0.0000000746*B4^2)),""))) -> 6.040906742 | C21: per head/day | D21: x | E21: 365 | F21: days | J21: =B21*E21 -> 2204.930961 | K21: =J21/$B$4*100 -> 9.38268494 | L21: Jan. 2015 ERS has 11.45/cwt
A22: Breeding Fees | J22: 62 | K22: =J22/$B$4*100 -> 0.2638297872 | L22: Regression from FINBIN
A23: Daily Labor | B23: 15 | C23: per hour | D23: x | E23: 42 | F23: hours | I23: = | J23: =B23*E23 -> 630 | K23: 2.680851064 | L23: Matched to Regression from total labor costs from FINBIN
A24: Management Labor | B24: 25 | C24: per hour | D24: x | E24: 9.5 | F24: hours | I24: = | J24: =B24*E24 -> 237.5 | K24: =J24/$B$4*100 -> 1.010638298
A25: Milk Marketing & Hauling | J25: 105 | K25: 0.4468085106 | L25: Average of Regression from both cow worksheets
A26: Veterinary | J26: 160 | K26: 0.6808510638 | L26: Regression from FINBIN
A27: Fuel & Oil | J27: 85 | K27: 0.3617021277 | L27: Regression from FINBIN
A28: Utilities | J28: 83 | K28: 0.3531914894 | L28: FINBIN average (regression had low R2)
A29: Machinery, Facility/Equip. Repairs | J29: 160 | K29: 0.6808510638 | L29: Regression from FINBIN
A30: Bedding | J30: 120 | K30: 0.5106382979 | L30: Regression from FINBIN
A31: Custom Hire | J31: 77 | K31: 0.3276595745 | L31: Regression from FINBIN
A32: Cash Interest Paid | J32: 102 | K32: =J32/$B$4*100 -> 0.4340425532 | L32: Average from FINBIN (low R2)
A33: Other variable costs | J33: 303 | K33: 1.289361702 | L33: Regression of Supplies from FINBIN
A34: Total Variable Costs | J34: =SUM(J20:J33) -> 4695.790961 | K34: =SUM(K20:K33) -> 19.9820892
A36: Fixed Costs
A37: Depreciation | J37: 192 | K37: =J37/$B$4*100 -> 0.8170212766 | L37: Regression from FINBIN
A38: Farm/Livestock Insurance | J38: 65 | K38: =J38/$B$4*100 -> 0.2765957447 | L38: Regression from FINBIN
A39: Opportunity Cost of Investment | J39: 268 | K39: 1.140425532 | L39: Calculated as 5.5% of total costs ($4,901.53)
A40: Other fixed costs | J40: 134 | K40: 0.570212766 | L40: Average from FINBIN (low R2)
A41: Total Fixed Costs | J41: =SUM(J37:J40) -> 659 | K41: =SUM(K37:K40) -> 2.804255319
A43: Total Costs | J43: =J34+J41 -> 5354.790961 | K43: =K34+K41 -> 22.78634451 | L43: Jan. 2015 ERS has $22.87 for total costs
A45: Income Over Variable Costs | J45: =J17-J34 -> 25.30903917 | K45: =K17-K34 -> 0.107698039
A46: Income Over Total Costs | J46: =J17-J43 -> -633.6909608 | K46: =K17-K43 -> -2.69655728
A48: Kansas State University, Department of Agricultural Economics - www.agmanager.info
A49: Publication: AM-FMG-Dairy Cows-Raised | J49: =Introduction!L8 -> Version- 12.2.2019
A51: KSU Dairy Cow Budget- Raised Replacements
A95: Kansas State University, Department of Agricultural Economics - www.agmanager.info
A96: Publication: AM-FMG-Dairy Cows-Raised | J96: =J49 -> Version- 12.2.2019
A98: KSU Dairy Cow Budget- Raised Replacements
A113: Budget Assumptions
A114: Default Dairy Prices
B115: Current | C115: One Year Out | E115: Five Years Out
A116: =Prices!A6 -> Corn ($/bu) | B116: =Prices!B6 -> 3.7 | C116: =Prices!D6 -> 3.9 | E116: =Prices!G6 -> 3.45
A117: =Prices!A7 -> Soybeans ($/bu) | B117: =Prices!B7 -> 8.47 | C117: =Prices!D7 -> 9.05 | E117: =Prices!G7 -> 8.6
A118: =Prices!A8 -> Dairy Alfalfa ($/ton) | B118: =Prices!B8 -> 210 | C118: =Prices!D8 -> 221.3513514 | E118: =Prices!G8 -> 195.8108108
A119: =Prices!A9 -> 16% 100 pounds of feed ($) | B119: =Prices!B9 -> 8.80397619 | C119: =Prices!D9 -> 9.296155084 | E119: =Prices!G9 -> 8.302752574
A120: =Prices!A10 -> Milk:Feed Ratio | B120: =Prices!B10 -> 2.044530745 | C120: =Prices!D10 -> 1.721141682 | E120: =Prices!G10 -> 2.186022026
A121: =Prices!A11 -> Heifer Total Feed Cost ($) | B121: =Prices!B11 -> 852 | C121: =Prices!D11 -> 869 | E121: =Prices!G11 -> 826
A123: =Prices!A13 -> Milk ($/cwt) | B123: =Prices!B13 -> 18 | C123: =Prices!D13 -> 16 | E123: =Prices!G13 -> 18.15
A124: =Prices!A14 -> Replacement Heifers (per hd) | B124: =Prices!B14 -> 1300 | C124: =Prices!D14 -> 1257 | E124: =Prices!G14 -> 1278
A125: =Prices!A15 -> Dairy Bull Calves (per hd) | B125: =Prices!B15 -> 75 | C125: =Prices!D15 -> 73 | E125: =Prices!G15 -> 74
A126: =Prices!A16 -> Dairy Heifer Calves (per hd) | B126: =Prices!B16 -> 75 | C126: =Prices!D16 -> 73 | E126: =Prices!G16 -> 74
A127: =Prices!A17 -> Dairy Cull cow (per cwt) | B127: =Prices!B17 -> 38 | C127: =Prices!D17 -> 37 | E127: =Prices!G17 -> 38
A128: =Prices!A18 -> Cull Replacement Heifer (per cwt) | B128: =Prices!B18 -> 107.88 | C128: =Prices!D18 -> 106 | E128: =Prices!G18 -> 106
A129: =Prices!A19 -> Cull Yearling Heifer (per cwt) | B129: =Prices!B19 -> 115 | C129: =Prices!D19 -> 111 | E129: =Prices!G19 -> 113
A139: Kansas State University, Department of Agricultural Economics - www.agmanager.info
A140: Publication: AM-FMG-Dairy Cow-Raised | J140: =J96 -> Version- 12.2.2019

Sheet Replacement Heifers
A1: KSU Dairy Replacement Heifer Budget | D1: Current Prices | H1: =IF(D1=Prices!A1,Prices!B5,IF(D1=Prices!A2,Prices!D5,Prices!G5)) -> (as of Dec. 2nd, 2019) | K1: INTERNAL NOTES: | L1: Click on "Current Prices" to change to "One Year Out Prices " or "Five Years Out Prices"
A3: Production Efficiency Information
A4: Cull Replacements Sold | B4: 0.05 | C4: Death Loss | E4: 0.07
A5: Cull Yearlings Sold | B5: 0.02
A7: Returns | B7: Price | C7: Unit | E7: Qty | F7: Unit | H7: % | J7: Total per Heifer
A8: Springer Heifer Sales | B8: =IF(D1=Prices!A1,Prices!B14,IF(D1=Prices!A2,Prices!D14,IF(D1=Prices!A3,Prices!G14,""))) -> 1300 | C8: per head | D8: x | G8: x | H8: =1-B4-B5-E4 -> 0.86 | I8: = | J8: =B8*H8 -> 1118
A9: Cull Replacements Sold | B9: =IF(D1=Prices!A1,Prices!B18,IF(D1=Prices!A2,Prices!D18,IF(D1=Prices!A3,Prices!G18,""))) -> 107.88 | C9: per cwt | D9: x | E9: 1250 | F9: lbs | G9: x | H9: =B4 -> 0.05 | I9: = | J9: =(B9*(E9/100))*H9 -> 67.425
A10: Cull Yearlings Sold | B10: =IF(D1=Prices!A1,Prices!B19,IF(D1=Prices!A2,Prices!D19,IF(D1=Prices!A3,Prices!G19,""))) -> 115 | C10: per cwt | D10: x | E10: 725 | F10: lbs | G10: x | H10: =B5 -> 0.02 | I10: = | J10: =B10*(E10/100)*H10 -> 16.675
A11: Manure Credit | J11: 35
A12: Other Income
A13: Purchase of Heifer Calf | B13: =IF(D1=Prices!A1,Prices!B16,IF(D1=Prices!A2,Prices!D16,IF(D1=Prices!A3,Prices!G16,""))) -> 75 | C13: per head | J13: =-(B13) -> -75
A14: Total Gross Return | J14: =SUM(J8:J13) -> 1162.1
A16: Variable Costs
A17: Feed Costs | J17: =IF(D1="Current Prices", Prices!B11,IF(D1="One Year Out Prices", Prices!D11, IF(D1="Five Years Out Prices", Prices!G11,""))) -> 852
A18: Daily Labor | B18: 15 | C18: per hour | D18: x | E18: 15 | F18: hours | J18: =B18*E18 -> 225 | K18: Total Labor FINBIN Regression (Labor hours should be 14 total)
A19: Management Labor | B19: 25 | C19: per hour | D19: x | E19: 3 | F19: hours | J19: =B19*E19 -> 75 | K19: Average of Labor and Management Charge
A20: Breeding Fees | J20: 25 | K20: FINBIN Regression
A21: Veterinary | J21: 48 | K21: FINBIN Regression
A22: Fuel & Oil | J22: 26 | K22: FINBIN Regression
A23: Utilities | J23: 25.5 | K23: Average of FINBIN
A24: Machinery, Facility/Equip. Repairs | J24: 49 | K24: FINBIN Regression
A25: Bedding | J25: 41 | K25: FINBIN Regression (isolated spreadsheet)
A26: Custom Hire | J26: 10 | K26: FINBIN Average of Custom Hire
A27: Cash Interest Paid | J27: 33 | K27: Average of FINBIN
A28: Other Variable Costs | J28: 44 | K28: Average of FINBIN
A29: Total Variable Costs | J29: =SUM(J17:J28) -> 1453.5
A31: Fixed Costs
A32: Depreciation | J32: 74 | K32: FINBIN regression
A33: Insurance | J33: 18 | K33: FINBIN regression
A34: Opportunity Cost of Investment | J34: 84 | K34: Calculated as 5.5% of total costs ($1541)
A35: Other fixed costs | J35: 43 | K35: FINBIN regression of Misc. + Building Leases
A36: Total Fixed Costs | J36: =SUM(J32:J35) -> 219
A38: Total Costs | J38: =J29+J36 -> 1672.5
A40: Income Over Variable Costs | J40: =J14-J29 -> -291.4
A41: Income Over Total Costs | J41: =J14-J38 -> -510.4
A43: Kansas State University, Department of Agricultural Economics - www.agmanager.info
A44: Publication: AM-FMG-Dairy Heifers | I44: =Introduction!L8 -> Version- 12.2.2019
A46: KSU Dairy Replacement Heifer Budget
A90: Kansas State University, Department of Agricultural Economics - www.agmanager.info
A91: Publication: AM-FMG-Heifers | I91: =I44 -> Version- 12.2.2019
A93: KSU Dairy Replacement Heifer Budget
A94: Budget Assumptions
A96: Default Dairy Prices
B97: Current | C97: One Year Out | E97: Five Years Out
A98: =Prices!A6 -> Corn ($/bu) | B98: =Prices!B6 -> 3.7 | C98: =Prices!D6 -> 3.9 | E98: =Prices!G6 -> 3.45
A99: =Prices!A7 -> Soybeans ($/bu) | B99: =Prices!B7 -> 8.47 | C99: =Prices!D7 -> 9.05 | E99: =Prices!G7 -> 8.6
A100: =Prices!A8 -> Dairy Alfalfa ($/ton) | B100: =Prices!B8 -> 210 | C100: =Prices!D8 -> 221.3513514 | E100: =Prices!G8 -> 195.8108108
A101: =Prices!A9 -> 16% 100 pounds of feed ($) | B101: =Prices!B9 -> 8.80397619 | C101: =Prices!D9 -> 9.296155084 | E101: =Prices!G9 -> 8.302752574
A102: =Prices!A10 -> Milk:Feed Ratio | B102: =Prices!B10 -> 2.044530745 | C102: =Prices!D10 -> 1.721141682 | E102: =Prices!G10 -> 2.186022026
A103: =Prices!A11 -> Heifer Total Feed Cost ($) | B103: =Prices!B11 -> 852 | C103: =Prices!D11 -> 869 | E103: =Prices!G11 -> 826
A105: =Prices!A13 -> Milk ($/cwt) | B105: =Prices!B13 -> 18 | C105: =Prices!D13 -> 16 | E105: =Prices!G13 -> 18.15
A106: =Prices!A14 -> Replacement Heifers (per hd) | B106: =Prices!B14 -> 1300 | C106: =Prices!D14 -> 1257 | E106: =Prices!G14 -> 1278
A107: =Prices!A15 -> Dairy Bull Calves (per hd) | B107: =Prices!B15 -> 75 | C107: =Prices!D15 -> 73 | E107: =Prices!G15 -> 74
A108: =Prices!A16 -> Dairy Heifer Calves (per hd) | B108: =Prices!B16 -> 75 | C108: =Prices!D16 -> 73 | E108: =Prices!G16 -> 74
A109: =Prices!A17 -> Dairy Cull cow (per cwt) | B109: =Prices!B17 -> 38 | C109: =Prices!D17 -> 37 | E109: =Prices!G17 -> 38
A110: =Prices!A18 -> Cull Replacement Heifer (per cwt) | B110: =Prices!B18 -> 107.88 | C110: =Prices!D18 -> 106 | E110: =Prices!G18 -> 106
A111: =Prices!A19 -> Cull Yearling Heifer (per cwt) | B111: =Prices!B19 -> 115 | C111: =Prices!D19 -> 111 | E111: =Prices!G19 -> 113
A130: Kansas State University, Department of Agricultural Economics - www.agmanager.info
A131: Publication: AM-FMG-Finishing | I131: =I91 -> Version- 12.2.2019

Sheet Heifer Costs WI Report (hidden)
B1: Calf | E1: Heifer | I1: Total
A2: Liquid Feed | B2: 96
A3: Calf Starter | B3: 63.42
A4: Forage | B4: 5.31
A5: Total Feed | B5: =SUM(B2:B4) -> 164.73 | E5: 1046.11 | I5: =B5+E5 -> 1210.84
A6: Bedding | B6: 8.63 | E6: 91.57 | I6: =B6+E6 -> 100.2
A7: Veterinary | B7: 21.86 | E7: 50.33 | I7: 72.19
A8: Breeding | E8: 38.54 | I8: 38.54
A9: Electric and Fuel | E9: 31.83 | I9: 31.83
A10: Death Loss | B10: 7.02 | E10: 5.27 | I10: 12.29
A11: Interest | B11: 3.94 | E11: 56.63 | I11: 60.57
A12: Paid & Unpaid Labor | B12: 122.33 | E12: 307.61 | I12: =B12+E12 -> 429.94 | J12: Valued at $13 per hour | M12: =I12/13 -> 33.07230769 | N12: hours | O12: Something didn't add up here
A13: Paid & Unpaid Management | B13: 11.97 | E13: 25.66 | I13: 37.63 | J13: Valued at $22 per hour | M13: =I13/22 -> 1.710454545
A15: Sum | B15: =SUM(B5:B13) -> 340.48 | E15: =SUM(E2:E13) -> 1653.55 | I15: 1994.03
A17: Housing | B17: 16.32 | E17: 149.04 | I17: 165.36
A18: Equipment | B18: 6.87 | E18: 41.05 | I18: 47.92 | J18: DIRTI Total | K18: Depreciation | L18: Interest | M18: Repairs | N18: Taxes | O18: Insurance
A19: Manure Storage | E19: 19.71 | I19: 19.71 | J19: =SUM(I17:I19) -> 232.99 | K19: =0.07/0.15*$J$19 -> 108.7286667 | L19: =0.05/0.15*$J$19 -> 77.66333333 | M19: =0.02/0.15*$J$19 -> 31.06533333 | N19: =0.005/0.15*$J$19 -> 7.766333333 | O19: =0.005/0.15*$J$19 -> 7.766333333
A21: Sum | B21: =SUM(B17:B18) -> 23.19 | E21: =SUM(E17:E19) -> 209.8 | I21: 232.99
A23: Total Sum | B23: =B15+B21 -> 363.67 | E23: =E15+E21 -> 1863.35 | I23: 2227.02
A24: Opportunity Cost of Unpaid Labor & Management | B24: 73.86 | E24: 146.27 | I24: 220.13
A25: Return | B25: =B23+B24 -> 437.53 | E25: =E23+E24 -> 2009.62 | I25: 2447.15
A31: Feed Cost | B31: 164.74 | C31: 0.4421 | E31: 1046.11 | F31: 0.5718 | I31: 1210.85
A32: Variable Cost (w/o labor and management) | B32: 41.34 | C32: 0.1266 | E32: 274.17 | F32: 0.151 | I32: 315.51
A33: Labor & Management Total | B33: 134.3 | C33: 0.3663 | E33: 333.11 | F33: 0.1661 | I33: 467.41
A34: Total Fixed Costs | B34: 23.2 | C34: 0.065 | E34: 209.8 | F34: 0.1111 | I34: 233
A36: Labor/Mngt. Required | B36: 9.95 | C36: Hours/calf | E36: 12.78 | F36: Hours/heifer | I36: 22.73 | K36: Used Labor hours * Labor Rate instead of listed Labor costs
A37: Weaning Age | B37: 7.61 | C37: weeks | E37: 23.38 | F37: Months | I37: =(B37/4)+E37 -> 25.2825 | J37: Months
A38: Days on feed | B38: 68.6 | C38: days | E38: 611.48 | F38: Days | I38: 680.08 | J38: Days | K38: =I38/30.4 -> 22.37105263

Sheet Costs (hidden)
B1: 2013 KFMA Values | D1: UW-Heifers costs 2013 | H1: 2014 KFMA Values
B2: Total | C2: Total for cows | D2: Total for heifers | E2: Total for Heifers (1 Year) | F2: Cow % | G2: Heifer %
A3: Feed | B3: =3180.29-B4 -> 3080.29 | C3: =B3-E3 -> 2532.79 | D3: 1095 | E3: =D3/2 -> 547.5 | F3: =C3/B3 -> 0.8222569953 | G3: =1-F3 -> 0.1777430047
A4: Bedding | B4: 100 | C4: =B4-E4 -> 50 | D4: 100 | E4: =D4/2 -> 50 | F4: =C4/B4 -> 0.5 | G4: =1-F4 -> 0.5
A5: Daily Labor | B5: 333.35 | D5: 260 | E5: =D5/2 -> 130
A6: Management Labor | B6: 498.14 | D6: 44 | E6: 22
A7: Total Labor | B7: =B5+B6 -> 831.49 | C7: =B7-E7 -> 679.49 | D7: =D5+D6 -> 304 | E7: =E5+E6 -> 152 | F7: =C7/B7 -> 0.8171956367 | G7: =1-F7 -> 0.1828043633
A8: Livestock Breeding/Marketing | B8: 87.87 | C8: =B8-E8 -> 68.37 | D8: 39 | E8: 19.5 | F8: 0.7780812564 | G8: 0.2219187436
A9: Dairy Expense | B9: 366.46
A10: Milk Hauling & Promotion | B10: ='Cow Milking-Purchased Replmts'!J22 -> 105 | C10: =B10-E10 -> 105 | F10: 1 | G10: 0
A11: Remaining amount to be added to VC | B11: =B9-B10 -> 261.46
A12: Vet Medicine/Drugs | B12: 124.6 | C12: 88.6 | D12: 72 | E12: 36 | F12: 0.7110754414 | G12: 0.2889245586
A13: Utilities, Gas, Fuel, Oil | B13: =121.51+120.94 -> 242.45 | C13: =B13-E13 -> 226.45 | D13: 32 | E13: 16 | F13: 0.9340070118 | G13: 0.06599298824
A14: Machinery, Facility/Equip. Repairs | B14: =204.87+22.92+3.84 -> 231.63 | C14: 216.13 | D14: 31 | E14: 15.5 | F14: 0.933082934 | G14: 0.06691706601
A15: Other variable costs | B15: =63.82+27.87+2.21+B11 -> 355.36 | C15: =B15-E15 -> 324.86 | D15: 61 | E15: 30.5 | F15: 0.9141715443 | G15: 0.08582845565
A17: Depreciation | B17: 214.48 | C17: 159.98 | D17: 109 | E17: 54.5 | F17: 0.7458970533 | G17: 0.2541029467
A18: Taxes | B18: =13.65+5.21 -> 18.86 | C18: 14.86 | D18: 8 | E18: 4 | F18: 0.7879109226 | G18: 0.2120890774
A19: Farm/Livestock Insurance | B19: 37.5 | C19: 33.5 | D19: 8 | E19: 4 | F19: 0.8933333333 | G19: 0.1066666667
A20: Opportunity Cost of Investment | B20: 267.41 | C20: 228.41 | D20: 78 | E20: 39 | F20: 0.8541565386 | G20: 0.1458434614
A24: Notes:
A25: Total for Heifers was determined based on 2013 Economic Cost and Labor Efficiencies Associated with Raising Dairy Herd Replacements on Wisconsin Dairy Farms and Custom Heifer Raising Operations
A26: Total for Heifers was divided by two to get a yearly cost (assuming a two year heifer development budget
A27: Total for Cows was determined by taking KFMA values and subtracting the Total for Heifers for 1 year
A28: Percentages will be used to apply costs going forward from KFMA values.

Sheet Manure Credit (hidden)
B2: Information from Joe based on ASABE formulas
B4: Lactation Days | C4: 315 | D4: days | G4: Dry Period | H4: 50 | I4: days | K4: Heifer | L4: 720 | M4: days | O4: Phosphorus to Phosphate conversion | S4: 2.29
B5: Milk production | C5: =23000 -> 23000 | G5: Av. Body Weight | H5: 1400 | K5: Av. Body Weight | L5: 750 | O5: Potassium to Potash conversion | S5: 1.2
B6: Daily milk production | C6: =C5/C4 -> 73.01587302 | D6: lbs | G6: DM Intake (lbs) | H6: 28 | K6: DM Intake (lbs) | L6: 18 | O6: Pounds/kg | P6: 2.20462262
C7: =C6/2.2046 -> 33.11978273 | D7: kg | G7: DM Intake (kg) | H7: =H6/2.2046 -> 12.70071668 | K7: DM Intake (kg) | L7: =L6/2.2046 -> 8.164746439 | O7: Grams/lb | P7: 453.59237
B8: Daily Nutrients Excreted using ASABE Standard Equations | O8: Pounds/gallon | P8: 8
D9: Intercept | E9: Slope
B10: N (gm/day) | C10: =$D10+C7*$E10 -> 422.5355666 | D10: 283.3 | E10: 4.204 | H10: 0.135 | I10: Concentration of Crude Protein, % | L10: 0.12
B11: P (gm/day) | C11: =$D11+C7*$E11 -> 71.61659205 | D11: 46.015 | E11: 0.773 | H11: 0.0025 | I11: Concentration of Phosphorus, % | L11: 0.003
B12: K (gm/day) | C12: =$D12+C7*$E12 -> 90.76960892 | D12: 31.154 | E12: 1.8 | H12: 0.0065 | I12: Concentration of Potassium, % | L12: 0
B14: N (lbs/day) | C14: =C10/453.5924 -> 0.9315314071 | H14: =(H7*12.747+H10*1606.29-117.5)/453.5924 -> 0.5759470078 | I14: N (lbs/day) | L14: =((L7*1000*L10)/6.25)/453.5924 -> 0.3456035234
B15: P (lbs/day) | C15: =C11/453.5924 -> 0.1578875485 | H15: =(((H7*1000)*H11*H4-264.386)/H4)/453.5924 -> 0.0583432873 | I15: P (lbs/day) | L15: =((L7*1000)*L11)/453.5924 -> 0.05400055053
B16: K (lbs/day) | C16: 0.20011272 | H16: =(H7*1000*H12)/453.5924 -> 0.1820018555 | I16: K (lbs/day) | L16: =(L7*1000*L12)/453.5924 -> 0
B18: Nutrients Excreted per Cow for Lactation Period
B19: N (lbs/year) | C19: =C14*$C$4 -> 293.4323932
B20: P2O5 (lbs/year) | C20: =C15*$C$4*S4 -> 113.8921831
B21: K2O (lbs/year) | C21: =C16*$C$4*S5 -> 75.64260815
B23: Percentage of Nutrients Available at Application | H23: Percentage of Nutrients Available at Application
C24: Freestall | D24: Drylot | H24: 25 | L24: 20
B25: N Available | C25: 0.4 | D25: 0.2 | H25: 90 | L25: 90
B26: P Available | C26: 0.9 | D26: 0.9 | H26: 90 | L26: 90
B27: K Available | C27: 0.9 | D27: 0.9
B29: Pounds of Nutrients Available at Application | H29: Pounds of Nutrients Available at Application
C30: Freestall | D30: Drylot
B31: N Available | C31: =C19*C25 -> 117.3729573 | D31: =D25*C19 -> 58.68647865 | H31: =H14*H24/100*H4 -> 7.199337598 | L31: =L14*L24/100*L4 -> 49.76690737
B32: P2O5 Available | C32: =C20*C26 -> 102.5029648 | D32: =D26*C20 -> 102.5029648 | H32: =H15*H25/100*H4*S4 -> 6.012275756 | L32: =L15*L25/100*L4*S4 -> 80.13249695
B33: K2O Available | C33: =C27*C21 -> 68.07834733 | D33: 68.07834733 | H33: =H16*H26/100*H4*S5 -> 9.828100197 | L33: =L16*L26/100*L4*S5 -> 0
C35: Price | D35: % to credit | E35: Total Pounds Freestall | G35: Total Pounds Drylot | H35: Heifer
B36: N, lbs/cow/year | C36: 0.38 | D36: 0.939 | E36: =C31+H31 -> 124.5722949 | G36: =D31+H31 -> 65.88581624 | H36: =L31/L4*365 -> 25.22905721
B37: P2O5, lbs/cow/year | C37: 0.75 | D37: 0.939 | E37: =C32+H32 -> 108.5152406 | G37: =D32+H32 -> 108.5152406 | H37: =L32/L4*365 -> 40.62272415
B38: K2O, lbs/cow/year | C38: 0.4 | D38: 0 | E38: 77.90644753 | G38: 77.90644753 | H38: =L33 -> 0
B39: Manure application | C39: 0 | D39: 1 | E39: =(C6*2.9133*(C4/P8))+((H5/17.73)*(H4/P8)) -> 8869.251318 | G39: =(C6*2.9133*(C4/P8))+((H5/17.73)*(H4/P8)) -> 8869.251318 | H39: =4750/L4*365 -> 2407.986111
D41: Nitrogen | E41: =C36*D36*E36 -> 44.44988626 | G41: =C36*D36*G36 -> 23.50937695 | H41: =C36*D36*H36 -> 9.002232193
D42: Phosphate | E42: =C37*D37*E37 -> 76.42185816 | G42: =C37*D37*G37 -> 76.42185816 | H42: =C37*D37*H37 -> 28.60855348
D43: Potash | E43: =C38*D38*E38 -> 0 | G43: =C38*D38*G38 -> 0 | H43: 0
D44: Application | E44: =C39*D39*E39 -> 0 | G44: =C39*D39*G39 -> 0 | H44: =C39*D39*H39 -> 0
D45: Net | E45: =E41+E42+E43-E44 -> 120.8717444 | G45: =G41+G42+G43-G44 -> 99.93123511 | H45: =H41+H42-H44 -> 37.61078567
D46: Budget | E46: 120 per cow | H46: 35 per heifer
